Workbook

Sheet नकद प्रवाह विवरण
B1: नकद प्रवाह विवरण
B3: वित्तीय वर्ष आरंभ: | D3: (पुर्व) आरंभ | E3: =UPPER(TEXT(FiscalYearStartDate,"mmm")) -> जनवरी | F3: =UPPER(TEXT(EOMONTH(FiscalYearStartDate,1),"mmm")) -> फरवरी | G3: =UPPER(TEXT(EOMONTH(FiscalYearStartDate,2),"mmm")) -> मार्च | H3: =UPPER(TEXT(EOMONTH(FiscalYearStartDate,3),"mmm")) -> अप्रैल | I3: =UPPER(TEXT(EOMONTH(FiscalYearStartDate,4),"mmm")) -> मई | J3: =UPPER(TEXT(EOMONTH(FiscalYearStartDate,5),"mmm")) -> जून | K3: =UPPER(TEXT(EOMONTH(FiscalYearStartDate,6),"mmm")) -> जुलाई | L3: =UPPER(TEXT(EOMONTH(FiscalYearStartDate,7),"mmm")) -> अगस्त | M3: =UPPER(TEXT(EOMONTH(FiscalYearStartDate,8),"mmm")) -> सितम्बर | N3: =UPPER(TEXT(EOMONTH(FiscalYearStartDate,9),"mmm")) -> अक्तूबर | O3: =UPPER(TEXT(EOMONTH(FiscalYearStartDate,10),"mmm")) -> नवम्बर | P3: =UPPER(TEXT(EOMONTH(FiscalYearStartDate,11),"mmm")) -> दिसम्बर | R3: कुल
B4: 2012-01-05 | D4: EST | E4: =FiscalYearStartDate -> 2012-01-05 | F4: =EOMONTH(E4,0)+DAY(FiscalYearStartDate) -> 2012-02-05 | G4: =EOMONTH(F4,0)+DAY(FiscalYearStartDate) -> 2012-03-05 | H4: =EOMONTH(G4,0)+DAY(FiscalYearStartDate) -> 2012-04-05 | I4: =EOMONTH(H4,0)+DAY(FiscalYearStartDate) -> 2012-05-05 | J4: =EOMONTH(I4,0)+DAY(FiscalYearStartDate) -> 2012-06-05 | K4: =EOMONTH(J4,0)+DAY(FiscalYearStartDate) -> 2012-07-05 | L4: =EOMONTH(K4,0)+DAY(FiscalYearStartDate) -> 2012-08-05 | M4: =EOMONTH(L4,0)+DAY(FiscalYearStartDate) -> 2012-09-05 | N4: =EOMONTH(M4,0)+DAY(FiscalYearStartDate) -> 2012-10-05 | O4: =EOMONTH(N4,0)+DAY(FiscalYearStartDate) -> 2012-11-05 | P4: =EOMONTH(O4,0)+DAY(FiscalYearStartDate) -> 2012-12-05 | R4: आइटम EST
B6: हाथ में नकद (माह का आरंभ) | D6: 100 | E6: =D48 -> 100 | F6: =E48 -> -125 | G6: 45 | H6: -1 | I6: 224 | J6: 269 | K6: 269 | L6: 269 | M6: 269 | N6: 269 | O6: 269 | P6: 269 | R6: =P6 -> 269
B8: नकद प्राप्तियाँ
B9: नकद विक्रय | E9: 125 | F9: 120 | G9: 130 | H9: 100 | R9: =SUM(नकदप्राप्तियाँ[[#This Row],[Period 0]:[Period 12]]) -> 475
B10: CR खातों की उगाही | H10: 75 | I10: 45 | R10: =SUM(नकदप्राप्तियाँ[[#This Row],[Period 0]:[Period 12]]) -> 120
B11: लोन/अन्य नकद | E11: 50 | F11: 50 | G11: 50 | H11: 50 | R11: =SUM(नकदप्राप्तियाँ[[#This Row],[Period 0]:[Period 12]]) -> 200
B12: कुल | D12: =SUBTOTAL(109,नकदप्राप्तियाँ[Period 0]) -> 0 | E12: =SUBTOTAL(109,नकदप्राप्तियाँ[Period 1]) -> 175 | F12: =SUBTOTAL(109,नकदप्राप्तियाँ[Period 2]) -> 170 | G12: =SUBTOTAL(109,नकदप्राप्तियाँ[Period 3]) -> 180 | H12: =SUBTOTAL(109,नकदप्राप्तियाँ[Period 4]) -> 225 | I12: =SUBTOTAL(109,नकदप्राप्तियाँ[Period 5]) -> 45 | J12: =SUBTOTAL(109,नकदप्राप्तियाँ[Period 6]) -> 0 | K12: =SUBTOTAL(109,नकदप्राप्तियाँ[Period 7]) -> 0 | L12: =SUBTOTAL(109,नकदप्राप्तियाँ[Period 8]) -> 0 | M12: =SUBTOTAL(109,नकदप्राप्तियाँ[Period 9]) -> 0 | N12: =SUBTOTAL(109,नकदप्राप्तियाँ[Period 10]) -> 0 | O12: =SUBTOTAL(109,नकदप्राप्तियाँ[Period 11]) -> 0 | P12: =SUBTOTAL(109,नकदप्राप्तियाँ[Period 12]) -> 0 | R12: =SUBTOTAL(109,नकदप्राप्तियाँ[Total]) -> 795
B13: कुल उपलब्ध नकद (कैश आउट के पहले) | D13: =D6+SUM(नकदप्राप्तियाँ[Period 0]) -> 100 | E13: =E6+SUM(नकदप्राप्तियाँ[Period 1]) -> 275 | F13: =F6+SUM(नकदप्राप्तियाँ[Period 2]) -> 45 | G13: =G6+SUM(नकदप्राप्तियाँ[Period 3]) -> 225 | H13: =H6+SUM(नकदप्राप्तियाँ[Period 4]) -> 224 | I13: =I6+SUM(नकदप्राप्तियाँ[Period 5]) -> 269 | J13: =J6+SUM(नकदप्राप्तियाँ[Period 6]) -> 269 | K13: =K6+SUM(नकदप्राप्तियाँ[Period 7]) -> 269 | L13: =L6+SUM(नकदप्राप्तियाँ[Period 8]) -> 269 | M13: =M6+SUM(नकदप्राप्तियाँ[Period 9]) -> 269 | N13: =N6+SUM(नकदप्राप्तियाँ[Period 10]) -> 269 | O13: =O6+SUM(नकदप्राप्तियाँ[Period 11]) -> 269 | P13: =P6+SUM(नकदप्राप्तियाँ[Period 12]) -> 269 | R13: =R6+SUM(नकदप्राप्तियाँ[Total]) -> 1064
B15: भुगतान किया गया नकद
B16: क्रय (उत्पाद) | E16: 400 | G16: 226 | R16: =SUM(भुगतानकियागयानकद[[#This Row],[Period 0]:[Period 12]]) -> 626
B17: क्रय (विशिष्ट) | R17: =SUM(भुगतानकियागयानकद[[#This Row],[Period 0]:[Period 12]]) -> 0
B18: क्रय (विशिष्ट) | R18: =SUM(भुगतानकियागयानकद[[#This Row],[Period 0]:[Period 12]]) -> 0
B19: सकल वेतन (स्पष्ट निकासी) | R19: =SUM(भुगतानकियागयानकद[[#This Row],[Period 0]:[Period 12]]) -> 0
B20: भुगतान रजिस्टर व्यय (कर आदि) | R20: =SUM(भुगतानकियागयानकद[[#This Row],[Period 0]:[Period 12]]) -> 0
B21: बाहरी सेवाएँ | R21: =SUM(भुगतानकियागयानकद[[#This Row],[Period 0]:[Period 12]]) -> 0
B22: आपूर्तियाँ (कार्यालयीन और प्रचालनात्मक) | R22: =SUM(भुगतानकियागयानकद[[#This Row],[Period 0]:[Period 12]]) -> 0
B23: मरम्मत और रखरखाव | R23: =SUM(भुगतानकियागयानकद[[#This Row],[Period 0]:[Period 12]]) -> 0
B24: विज्ञापन | R24: =SUM(भुगतानकियागयानकद[[#This Row],[Period 0]:[Period 12]]) -> 0
B25: कार, वितरण और यात्रा | R25: =SUM(भुगतानकियागयानकद[[#This Row],[Period 0]:[Period 12]]) -> 0
B26: लेखांनक और कानूनी | R26: =SUM(भुगतानकियागयानकद[[#This Row],[Period 0]:[Period 12]]) -> 0
B27: किराया | R27: =SUM(भुगतानकियागयानकद[[#This Row],[Period 0]:[Period 12]]) -> 0
B28: टेलीफ़ोन | R28: =SUM(भुगतानकियागयानकद[[#This Row],[Period 0]:[Period 12]]) -> 0
B29: उपयोगी सेवाएँ | R29: =SUM(भुगतानकियागयानकद[[#This Row],[Period 0]:[Period 12]]) -> 0
B30: बीमा | R30: =SUM(भुगतानकियागयानकद[[#This Row],[Period 0]:[Period 12]]) -> 0
B31: कर (अचल संपत्ति, आदि) | R31: =SUM(भुगतानकियागयानकद[[#This Row],[Period 0]:[Period 12]]) -> 0
B32: ब्याज | R32: =SUM(भुगतानकियागयानकद[[#This Row],[Period 0]:[Period 12]]) -> 0
B33: अन्य व्यय (विशिष्ट) | R33: =SUM(भुगतानकियागयानकद[[#This Row],[Period 0]:[Period 12]]) -> 0
B34: अन्य (विशिष्ट) | R34: =SUM(भुगतानकियागयानकद[[#This Row],[Period 0]:[Period 12]]) -> 0
B35: अन्य (विशिष्ट) | R35: =SUM(भुगतानकियागयानकद[[#This Row],[Period 0]:[Period 12]]) -> 0
B36: विविध | R36: =SUM(भुगतानकियागयानकद[[#This Row],[Period 0]:[Period 12]]) -> 0
B37: कुल | D37: =SUBTOTAL(109,भुगतानकियागयानकद[Period 0]) -> 0 | E37: =SUBTOTAL(109,भुगतानकियागयानकद[Period 1]) -> 400 | F37: =SUBTOTAL(109,भुगतानकियागयानकद[Period 2]) -> 0 | G37: =SUBTOTAL(109,भुगतानकियागयानकद[Period 3]) -> 226 | H37: =SUBTOTAL(109,भुगतानकियागयानकद[Period 4]) -> 0 | I37: =SUBTOTAL(109,भुगतानकियागयानकद[Period 5]) -> 0 | J37: =SUBTOTAL(109,भुगतानकियागयानकद[Period 6]) -> 0 | K37: =SUBTOTAL(109,भुगतानकियागयानकद[Period 7]) -> 0 | L37: =SUBTOTAL(109,भुगतानकियागयानकद[Period 8]) -> 0 | M37: =SUBTOTAL(109,भुगतानकियागयानकद[Period 9]) -> 0 | N37: =SUBTOTAL(109,भुगतानकियागयानकद[Period 10]) -> 0 | O37: =SUBTOTAL(109,भुगतानकियागयानकद[Period 11]) -> 0 | P37: =SUBTOTAL(109,भुगतानकियागयानकद[Period 12]) -> 0 | R37: =SUBTOTAL(109,भुगतानकियागयानकद[Total]) -> 626
B39: भुगतान किया गया नकद (ग़ैर P&L)
B40: ऋण मूल भुगतान | R40: =SUM(भुगतानकियागयानकद2[[#This Row],[Period 0]:[Period 12]]) -> 0
B41: प्रमुख क्रय (‍विशिष्ट) | R41: =SUM(भुगतानकियागयानकद2[[#This Row],[Period 0]:[Period 12]]) -> 0
B42: अन्य आरंभिक लागत | R42: =SUM(भुगतानकियागयानकद2[[#This Row],[Period 0]:[Period 12]]) -> 0
B43: आरक्षित और/या निलंब संपत्ति | R43: =SUM(भुगतानकियागयानकद2[[#This Row],[Period 0]:[Period 12]]) -> 0
B44: स्वामी की निकासी | R44: =SUM(भुगतानकियागयानकद2[[#This Row],[Period 0]:[Period 12]]) -> 0
B45: कुल | D45: =SUBTOTAL(109,भुगतानकियागयानकद2[Period 0]) -> 0 | E45: =SUBTOTAL(109,भुगतानकियागयानकद2[Period 1]) -> 0 | F45: =SUBTOTAL(109,भुगतानकियागयानकद2[Period 2]) -> 0 | G45: =SUBTOTAL(109,भुगतानकियागयानकद2[Period 3]) -> 0 | H45: =SUBTOTAL(109,भुगतानकियागयानकद2[Period 4]) -> 0 | I45: =SUBTOTAL(109,भुगतानकियागयानकद2[Period 5]) -> 0 | J45: =SUBTOTAL(109,भुगतानकियागयानकद2[Period 6]) -> 0 | K45: =SUBTOTAL(109,भुगतानकियागयानकद2[Period 7]) -> 0 | L45: =SUBTOTAL(109,भुगतानकियागयानकद2[Period 8]) -> 0 | M45: =SUBTOTAL(109,भुगतानकियागयानकद2[Period 9]) -> 0 | N45: =SUBTOTAL(109,भुगतानकियागयानकद2[Period 10]) -> 0 | O45: =SUBTOTAL(109,भुगतानकियागयानकद2[Period 11]) -> 0 | P45: =SUBTOTAL(109,भुगतानकियागयानकद2[Period 12]) -> 0 | R45: =SUBTOTAL(109,भुगतानकियागयानकद2[Total]) -> 0
B46: भुगतान किया गया कुल नकद | D46: =SUM(भुगतानकियागयानकद[Period 0],भुगतानकियागयानकद2[Period 0]) -> 0 | E46: =SUM(भुगतानकियागयानकद[Period 1],भुगतानकियागयानकद2[Period 1]) -> 400 | F46: =SUM(भुगतानकियागयानकद[Period 2],भुगतानकियागयानकद2[Period 2]) -> 0 | G46: =SUM(भुगतानकियागयानकद[Period 3],भुगतानकियागयानकद2[Period 3]) -> 226 | H46: =SUM(भुगतानकियागयानकद[Period 4],भुगतानकियागयानकद2[Period 4]) -> 0 | I46: =SUM(भुगतानकियागयानकद[Period 5],भुगतानकियागयानकद2[Period 5]) -> 0 | J46: =SUM(भुगतानकियागयानकद[Period 6],भुगतानकियागयानकद2[Period 6]) -> 0 | K46: =SUM(भुगतानकियागयानकद[Period 7],भुगतानकियागयानकद2[Period 7]) -> 0 | L46: =SUM(भुगतानकियागयानकद[Period 8],भुगतानकियागयानकद2[Period 8]) -> 0 | M46: =SUM(भुगतानकियागयानकद[Period 9],भुगतानकियागयानकद2[Period 9]) -> 0 | N46: =SUM(भुगतानकियागयानकद[Period 10],भुगतानकियागयानकद2[Period 10]) -> 0 | O46: =SUM(भुगतानकियागयानकद[Period 11],भुगतानकियागयानकद2[Period 11]) -> 0 | P46: =SUM(भुगतानकियागयानकद[Period 12],भुगतानकियागयानकद2[Period 12]) -> 0 | R46: =SUM(भुगतानकियागयानकद[Total],भुगतानकियागयानकद2[Total]) -> 626
B48: नकद स्थिति (माह का अंत) | D48: =D13-D46 -> 100 | E48: -125 | F48: 45 | G48: -1 | H48: 224 | I48: 269 | J48: 269 | K48: 269 | L48: 269 | M48: 269 | N48: 269 | O48: 269 | P48: 269 | R48: =R13-R46 -> 438
